[Event "Titled Tuesday Blitz August 16 Early 2022"]
[White "Albertini, Luca"]
[Black "Gheorghiu, Calin"]
[WhiteFideId "847038"]
[BlackFideId "1200305"]
[WhiteElo "2207"]
[BlackElo "2168"]
[Result "0-1"]
[Round "03"]
[TimeControl "180+2"]
[Date "2022.08.18"]
[WhiteClock "0:00:00"]
[BlackClock "0:00:00"]

1. e4 {[%clk 0:00:00]}  c5 {[%clk 0:00:00]} 2. Nf3 {[%clk 0:00:00]}  d6 {[%clk 0:00:00]} 3. d4 {[%clk 0:00:00]}  cxd4 {[%clk 0:00:00]} 4. Qxd4 {[%clk 0:00:00]}  Nc6 {[%clk 0:00:00]} 5. Bb5 {[%clk 0:00:00]}  Bd7 {[%clk 0:00:00]} 6. Bxc6 {[%clk 0:00:00]}  Bxc6 {[%clk 0:00:00]} 7. c4 {[%clk 0:00:00]}  Nf6 {[%clk 0:00:00]} 8. Nc3 {[%clk 0:00:00]}  g6 {[%clk 0:00:00]} 9. Bg5 {[%clk 0:00:00]}  Bg7 {[%clk 0:00:00]} 10. Qd3 {[%clk 0:00:00]}  O-O {[%clk 0:00:00]} 11. O-O {[%clk 0:00:00]}  Qa5 {[%clk 0:00:00]} 12. Nd5 {[%clk 0:00:00]}  Bxd5 {[%clk 0:00:00]} 13. exd5 {[%clk 0:00:00]}  Rac8 {[%clk 0:00:00]} 14. b3 {[%clk 0:00:00]}  Rfe8 {[%clk 0:00:00]} 15. Rae1 {[%clk 0:00:00]}  b5 {[%clk 0:00:00]} 16. Bxf6 {[%clk 0:00:00]}  bxc4 {[%clk 0:00:00]} 17. bxc4 {[%clk 0:00:00]}  Bxf6 {[%clk 0:00:00]} 18. Nd4 {[%clk 0:00:00]}  Bxd4 {[%clk 0:00:00]} 19. Qxd4 {[%clk 0:00:00]}  Qxa2 {[%clk 0:00:00]} 20. Ra1 {[%clk 0:00:00]}  Qxc4 {[%clk 0:00:00]} 21. Qxc4 {[%clk 0:00:00]}  Rxc4 {[%clk 0:00:00]} 22. Rxa7 {[%clk 0:00:00]}  Rc5 {[%clk 0:00:00]} 23. Rd1 {[%clk 0:00:00]}  f5 {[%clk 0:00:00]} 24. g3 {[%clk 0:00:00]}  g5 {[%clk 0:00:00]} 25. Kg2 {[%clk 0:00:00]}  Kf7 {[%clk 0:00:00]} 26. h3 {[%clk 0:00:00]}  h6 {[%clk 0:00:00]} 27. Rd2 {[%clk 0:00:00]}  Kf6 {[%clk 0:00:00]} 28. f4 {[%clk 0:00:00]}  gxf4 {[%clk 0:00:00]} 29. gxf4 {[%clk 0:00:00]}  Rc3 {[%clk 0:00:00]} 30. Kf2 {[%clk 0:00:00]}  Rxh3 {[%clk 0:00:00]} 31. Kg2 {[%clk 0:00:00]}  Re3 {[%clk 0:00:00]} 32. Kf2 {[%clk 0:00:00]}  Re4 {[%clk 0:00:00]} 33. Kf3 {[%clk 0:00:00]}  Rc8 {[%clk 0:00:00]} 34. Ra3 {[%clk 0:00:00]}  Rcc4 {[%clk 0:00:00]} 35. Rh2 {[%clk 0:00:00]}  Rxf4+ {[%clk 0:00:00]} 36. Ke3 {[%clk 0:00:00]}  Rh4 {[%clk 0:00:00]} 37. Rf2 {[%clk 0:00:00]}  Rh3+ {[%clk 0:00:00]} 38. Rf3 {[%clk 0:00:00]}  Re4+ {[%clk 0:00:00]} 39. Kf2 {[%clk 0:00:00]}  Rxf3+ {[%clk 0:00:00]} 40. Kxf3 {[%clk 0:00:00]}  Rd4 {[%clk 0:00:00]} 41. Ra5 {[%clk 0:00:00]}  h5 {[%clk 0:00:00]} 42. Kg3 {[%clk 0:00:00]}  h4+ {[%clk 0:00:00]} 43. Kh3 {[%clk 0:00:00]}  Kg5 {[%clk 0:00:00]} 44. Ra7 {[%clk 0:00:00]}  Rd3+ {[%clk 0:00:00]} 45. Kh2 {[%clk 0:00:00]}  Re3 {[%clk 0:00:00]} 46. Ra8 {[%clk 0:00:00]}  Kf4 {[%clk 0:00:00]} 47. Re8 {[%clk 0:00:00]}  Re5 {[%clk 0:00:00]} 48. Kh3 {[%clk 0:00:00]}  Ke4 {[%clk 0:00:00]} 49. Kxh4 {[%clk 0:00:00]}  Kxd5 {[%clk 0:00:00]} 50. Kg3 {[%clk 0:00:00]}  Re4 {[%clk 0:00:00]} 51. Rf8 {[%clk 0:00:00]}  f4+ {[%clk 0:00:00]} 52. Kf3 {[%clk 0:00:00]}  e5 {[%clk 0:00:00]} 53. Ra8 {[%clk 0:00:00]}  Re3+ {[%clk 0:00:00]} 54. Kf2 {[%clk 0:00:00]}  Ke4 {[%clk 0:00:00]} 55. Ra5 {[%clk 0:00:00]}  d5 {[%clk 0:00:00]} 56. Ra4+ {[%clk 0:00:00]}  d4 {[%clk 0:00:00]} 57. Ra8 {[%clk 0:00:00]}  Rc3 {[%clk 0:00:00]} 58. Ra2 {[%clk 0:00:00]}  Kf5 {[%clk 0:00:00]} 59. Ra5 {[%clk 0:00:00]}  d3 {[%clk 0:00:00]} 60. Kf3 {[%clk 0:00:00]}  d2+ {[%clk 0:00:00]} 61. Ke2 {[%clk 0:00:00]}  Rd3 {[%clk 0:00:00]} 62. Kd1 {[%clk 0:00:00]}  Rd4 {[%clk 0:00:00]} 63. Ra8 {[%clk 0:00:00]}  Ke4 {[%clk 0:00:00]} 64. Rh8 {[%clk 0:00:00]}  Ke3 {[%clk 0:00:00]} 65. Rh2 {[%clk 0:00:00]}  f3 {[%clk 0:00:00]} 66. Rh3 {[%clk 0:00:00]}  Ra4 {[%clk 0:00:00]} 0-1


[Site "https://www.chess.com"]

[Event "Titled Tuesday Blitz August 16 Early 2022"]
[White "Alexikov, Alexander"]
[Black "Namitbir Singh Walia"]
[WhiteFideId "14103958"]
[BlackFideId "35071068"]
[WhiteElo "2253"]
[BlackElo "1664"]
[Result "0-1"]
[Round "03"]
[TimeControl "180+2"]
[Date "2022.08.18"]
[WhiteClock "0:00:00"]
[BlackClock "0:00:00"]

1. e4 {[%clk 0:00:00]}  e5 {[%clk 0:00:00]} 2. Nf3 {[%clk 0:00:00]}  Nc6 {[%clk 0:00:00]} 3. c3 {[%clk 0:00:00]}  d5 {[%clk 0:00:00]} 4. Qa4 {[%clk 0:00:00]}  Qd6 {[%clk 0:00:00]} 5. Bb5 {[%clk 0:00:00]}  Bd7 {[%clk 0:00:00]} 6. d4 {[%clk 0:00:00]}  exd4 {[%clk 0:00:00]} 7. exd5 {[%clk 0:00:00]}  Qxd5 {[%clk 0:00:00]} 8. cxd4 {[%clk 0:00:00]}  Nb4 {[%clk 0:00:00]} 9. Bxd7+ {[%clk 0:00:00]}  Qxd7 {[%clk 0:00:00]} 10. Qb3 {[%clk 0:00:00]}  Qc6 {[%clk 0:00:00]} 11. Nc3 {[%clk 0:00:00]}  Nd3+ {[%clk 0:00:00]} 12. Ke2 {[%clk 0:00:00]}  Nxc1+ {[%clk 0:00:00]} 13. Raxc1 {[%clk 0:00:00]}  Bd6 {[%clk 0:00:00]} 14. Rhe1 {[%clk 0:00:00]}  Ne7 {[%clk 0:00:00]} 15. Nb5 {[%clk 0:00:00]}  Qa6 {[%clk 0:00:00]} 16. Qc4 {[%clk 0:00:00]}  Rc8 {[%clk 0:00:00]} 17. Kf1 {[%clk 0:00:00]}  O-O {[%clk 0:00:00]} 18. Kg1 {[%clk 0:00:00]}  Ng6 {[%clk 0:00:00]} 19. g3 {[%clk 0:00:00]}  h6 {[%clk 0:00:00]} 20. h4 {[%clk 0:00:00]}  Rfd8 {[%clk 0:00:00]} 21. Re4 {[%clk 0:00:00]}  Qb6 {[%clk 0:00:00]} 22. b3 {[%clk 0:00:00]}  a6 {[%clk 0:00:00]} 23. Nc3 {[%clk 0:00:00]}  c5 {[%clk 0:00:00]} 24. d5 {[%clk 0:00:00]}  Qc7 {[%clk 0:00:00]} 25. Kg2 {[%clk 0:00:00]}  b5 {[%clk 0:00:00]} 26. Qe2 {[%clk 0:00:00]}  Qd7 {[%clk 0:00:00]} 27. Rd1 {[%clk 0:00:00]}  Re8 {[%clk 0:00:00]} 28. a4 {[%clk 0:00:00]}  Rxe4 {[%clk 0:00:00]} 29. Nxe4 {[%clk 0:00:00]}  Re8 {[%clk 0:00:00]} 30. Qc2 {[%clk 0:00:00]}  Qc7 {[%clk 0:00:00]} 31. axb5 {[%clk 0:00:00]}  axb5 {[%clk 0:00:00]} 32. Nc3 {[%clk 0:00:00]}  Qd7 {[%clk 0:00:00]} 33. Qd3 {[%clk 0:00:00]}  Rb8 {[%clk 0:00:00]} 34. Re1 {[%clk 0:00:00]}  Nf8 {[%clk 0:00:00]} 35. Ne4 {[%clk 0:00:00]}  Qc7 {[%clk 0:00:00]} 36. Re3 {[%clk 0:00:00]}  c4 {[%clk 0:00:00]} 37. bxc4 {[%clk 0:00:00]}  bxc4 {[%clk 0:00:00]} 38. Qc2 {[%clk 0:00:00]}  Rc8 {[%clk 0:00:00]} 0-1


[Site "https://www.chess.com"]

[Event "Titled Tuesday Blitz August 16 Early 2022"]
[White "Bachmann, Axel"]
[Black "Bok, Benjamin"]
[WhiteFideId "3700488"]
[BlackFideId "1017063"]
[WhiteElo "2595"]
[BlackElo "2658"]
[Result "0-1"]
[Round "03"]
[TimeControl "180+1"]
[Date "2022.08.16"]
[WhiteClock "0:00:46"]
[BlackClock "0:00:20"]

1. d4 {[%clk 0:02:59]}  Nf6 {[%clk 0:02:59]} 2. c4 {[%clk 0:02:58]}  e6 {[%clk 0:03:00]} 3. Nc3 {[%clk 0:02:57]}  Bb4 {[%clk 0:02:59]} 4. e3 {[%clk 0:02:56]}  O-O {[%clk 0:02:59]} 5. Bd3 {[%clk 0:02:56]}  d5 {[%clk 0:02:59]} 6. Ne2 {[%clk 0:02:56]}  dxc4 {[%clk 0:02:56]} 7. Bxc4 {[%clk 0:02:54]}  c5 {[%clk 0:02:57]} 8. a3 {[%clk 0:02:53]}  Bxc3+ {[%clk 0:02:57]} 9. bxc3 {[%clk 0:02:53]}  Qc7 {[%clk 0:02:56]} 10. Bd3 {[%clk 0:02:51]}  Nc6 {[%clk 0:02:55]} 11. O-O {[%clk 0:02:38]}  e5 {[%clk 0:02:55]} 12. h3 {[%clk 0:02:36]}  Rd8 {[%clk 0:02:54]} 13. Bb2 {[%clk 0:02:36]}  Be6 {[%clk 0:02:53]} 14. Qb1 {[%clk 0:02:26]}  h6 {[%clk 0:02:40]} 15. Rd1 {[%clk 0:02:22]}  Rac8 {[%clk 0:02:38]} 16. a4 {[%clk 0:01:58]}  b6 {[%clk 0:02:38]} 17. Ba6 {[%clk 0:01:43]}  Rb8 {[%clk 0:02:37]} 18. Bb5 {[%clk 0:01:44]}  Na5 {[%clk 0:02:32]} 19. dxe5 {[%clk 0:01:36]}  Qxe5 {[%clk 0:02:33]} 20. Rxd8+ {[%clk 0:01:18]}  Rxd8 {[%clk 0:02:32]} 21. c4 {[%clk 0:01:19]}  Qe4 {[%clk 0:02:08]} 22. Bxf6 {[%clk 0:01:19]}  Qxb1+ {[%clk 0:02:09]} 23. Rxb1 {[%clk 0:01:20]}  gxf6 {[%clk 0:02:09]} 24. Rc1 {[%clk 0:01:21]}  Bc8 {[%clk 0:01:45]} 25. Rb1 {[%clk 0:01:01]}  a6 {[%clk 0:01:42]} 26. Bxa6 {[%clk 0:00:58]}  Bxa6 {[%clk 0:01:43]} 27. Rxb6 {[%clk 0:00:58]}  Bxc4 {[%clk 0:01:43]} 28. Nf4 {[%clk 0:00:59]}  Kf8 {[%clk 0:00:58]} 29. Rxf6 {[%clk 0:00:58]}  Rc8 {[%clk 0:00:51]} 30. Rxh6 {[%clk 0:00:56]}  Ke7 {[%clk 0:00:52]} 31. Rb6 {[%clk 0:00:49]}  Be6 {[%clk 0:00:50]} 32. Ne2 {[%clk 0:00:49]}  c4 {[%clk 0:00:48]} 33. Nc3 {[%clk 0:00:48]}  Rd8 {[%clk 0:00:46]} 34. Rb5 {[%clk 0:00:49]}  Nb3 {[%clk 0:00:43]} 35. a5 {[%clk 0:00:47]}  Rd3 {[%clk 0:00:35]} 36. Rb7+ {[%clk 0:00:45]}  Kf8 {[%clk 0:00:28]} 37. a6 {[%clk 0:00:44]}  Rxc3 {[%clk 0:00:24]} 38. a7 {[%clk 0:00:43]}  Rc1+ {[%clk 0:00:24]} 39. Kh2 {[%clk 0:00:44]}  Ra1 {[%clk 0:00:25]} 40. Rb8+ {[%clk 0:00:44]}  Kg7 {[%clk 0:00:25]} 41. a8=Q {[%clk 0:00:45]}  Rxa8 {[%clk 0:00:25]} 42. Rxa8 {[%clk 0:00:46]}  c3 {[%clk 0:00:25]} 43. Ra2 {[%clk 0:00:46]}  Bf5 {[%clk 0:00:20]} 0-1


[Site "https://www.chess.com"]

[Event "Titled Tuesday Blitz August 16 Early 2022"]
[White "Balabayeva, Xeniya"]
[Black "Ingebretsen, Jens E"]
[WhiteFideId "13719688"]
[BlackFideId "1522965"]
[WhiteElo "1895"]
[BlackElo "2036"]
[Result "1-0"]
[Round "03"]
[TimeControl "180+2"]
[Date "2022.08.18"]
[WhiteClock "0:00:00"]
[BlackClock "0:00:00"]

1. e4 {[%clk 0:00:00]}  e6 {[%clk 0:00:00]} 2. d4 {[%clk 0:00:00]}  d5 {[%clk 0:00:00]} 3. Nd2 {[%clk 0:00:00]}  c5 {[%clk 0:00:00]} 4. Ngf3 {[%clk 0:00:00]}  Nc6 {[%clk 0:00:00]} 5. exd5 {[%clk 0:00:00]}  Qxd5 {[%clk 0:00:00]} 6. Bc4 {[%clk 0:00:00]}  Qd6 {[%clk 0:00:00]} 7. Ne4 {[%clk 0:00:00]}  Qd8 {[%clk 0:00:00]} 8. dxc5 {[%clk 0:00:00]}  Qxd1+ {[%clk 0:00:00]} 9. Kxd1 {[%clk 0:00:00]}  f5 {[%clk 0:00:00]} 10. Nd6+ {[%clk 0:00:00]}  Bxd6 {[%clk 0:00:00]} 11. cxd6 {[%clk 0:00:00]}  Nf6 {[%clk 0:00:00]} 12. Bf4 {[%clk 0:00:00]}  Ne4 {[%clk 0:00:00]} 13. Ke2 {[%clk 0:00:00]}  Bd7 {[%clk 0:00:00]} 14. Bd3 {[%clk 0:00:00]}  g5 {[%clk 0:00:00]} 15. Nxg5 {[%clk 0:00:00]}  Nxg5 {[%clk 0:00:00]} 16. Bxg5 {[%clk 0:00:00]}  Rg8 {[%clk 0:00:00]} 17. Be3 {[%clk 0:00:00]}  Rxg2 {[%clk 0:00:00]} 18. Rag1 {[%clk 0:00:00]}  Rg6 {[%clk 0:00:00]} 19. h4 {[%clk 0:00:00]}  Kf7 {[%clk 0:00:00]} 20. h5 {[%clk 0:00:00]}  Rgg8 {[%clk 0:00:00]} 21. f4 {[%clk 0:00:00]}  Nb4 {[%clk 0:00:00]} 22. a3 {[%clk 0:00:00]}  Nd5 {[%clk 0:00:00]} 23. Kf2 {[%clk 0:00:00]}  Nf6 {[%clk 0:00:00]} 24. Bd4 {[%clk 0:00:00]}  Ng4+ {[%clk 0:00:00]} 25. Ke2 {[%clk 0:00:00]}  Bc6 {[%clk 0:00:00]} 26. Rh3 {[%clk 0:00:00]}  h6 {[%clk 0:00:00]} 27. Rhg3 {[%clk 0:00:00]}  Rgd8 {[%clk 0:00:00]} 28. Be5 {[%clk 0:00:00]}  Rac8 {[%clk 0:00:00]} 29. Kd2 {[%clk 0:00:00]}  Ba4 {[%clk 0:00:00]} 30. b3 {[%clk 0:00:00]}  Bc6 {[%clk 0:00:00]} 31. Be2 {[%clk 0:00:00]}  Be4 {[%clk 0:00:00]} 32. c4 {[%clk 0:00:00]}  b5 {[%clk 0:00:00]} 33. Bxg4 {[%clk 0:00:00]}  fxg4 {[%clk 0:00:00]} 34. Rxg4 {[%clk 0:00:00]}  bxc4 {[%clk 0:00:00]} 35. Rg7+ {[%clk 0:00:00]}  Ke8 {[%clk 0:00:00]} 36. Re7+ {[%clk 0:00:00]}  Kf8 {[%clk 0:00:00]} 37. Bg7+ {[%clk 0:00:00]}  Kg8 {[%clk 0:00:00]} 38. Bxh6+ {[%clk 0:00:00]}  Kh8 {[%clk 0:00:00]} 39. Bg7+ {[%clk 0:00:00]}  Kg8 {[%clk 0:00:00]} 40. Be5+ {[%clk 0:00:00]}  Kf8 {[%clk 0:00:00]} 41. h6 {[%clk 0:00:00]}  c3+ {[%clk 0:00:00]} 42. Kc1 {[%clk 0:00:00]}  c2 {[%clk 0:00:00]} 43. h7 {[%clk 0:00:00]}  Bxh7 {[%clk 0:00:00]} 44. Rxh7 {[%clk 0:00:00]}  Rxd6 {[%clk 0:00:00]} 45. Rh8+ {[%clk 0:00:00]}  Kf7 {[%clk 0:00:00]} 46. Rg7# {[%clk 0:00:00]} 1-0


[Site "https://www.chess.com"]

[Event "Titled Tuesday Blitz August 16 Early 2022"]
[White "Barp, Alberto"]
[Black "Drygalov, Sergey"]
[WhiteFideId "872555"]
[BlackFideId "24171743"]
[WhiteElo "2229"]
[BlackElo "2523"]
[Result "1-0"]
[Round "03"]
[TimeControl "180+1"]
[Date "2022.08.16"]
[WhiteClock "0:00:13"]
[BlackClock "0:00:16"]

1. d4 {[%clk 0:03:00]}  Nf6 {[%clk 0:02:59]} 2. c4 {[%clk 0:02:59]}  e6 {[%clk 0:03:00]} 3. g3 {[%clk 0:02:55]}  Bb4+ {[%clk 0:02:48]} 4. Bd2 {[%clk 0:02:52]}  a5 {[%clk 0:02:48]} 5. Bg2 {[%clk 0:02:52]}  d6 {[%clk 0:02:44]} 6. Nf3 {[%clk 0:02:52]}  Nbd7 {[%clk 0:02:43]} 7. O-O {[%clk 0:02:53]}  e5 {[%clk 0:02:43]} 8. Nc3 {[%clk 0:02:49]}  O-O {[%clk 0:02:42]} 9. Qc2 {[%clk 0:02:46]}  c6 {[%clk 0:02:40]} 10. e4 {[%clk 0:02:35]}  Re8 {[%clk 0:02:40]} 11. Rfe1 {[%clk 0:02:20]}  exd4 {[%clk 0:02:40]} 12. Nxd4 {[%clk 0:02:21]}  Bc5 {[%clk 0:02:40]} 13. Nf5 {[%clk 0:02:17]}  Ne5 {[%clk 0:02:40]} 14. Be3 {[%clk 0:02:08]}  Bxf5 {[%clk 0:02:40]} 15. Bxc5 {[%clk 0:02:02]}  dxc5 {[%clk 0:02:41]} 16. exf5 {[%clk 0:02:01]}  Nxc4 {[%clk 0:02:41]} 17. Rxe8+ {[%clk 0:01:54]}  Qxe8 {[%clk 0:02:36]} 18. Na4 {[%clk 0:01:52]}  b5 {[%clk 0:02:29]} 19. Nxc5 {[%clk 0:01:52]}  Rd8 {[%clk 0:02:29]} 20. Nd3 {[%clk 0:01:33]}  Qd7 {[%clk 0:02:17]} 21. Bf1 {[%clk 0:01:13]}  Qxf5 {[%clk 0:02:15]} 22. b3 {[%clk 0:01:13]}  Ne5 {[%clk 0:02:13]} 23. Rd1 {[%clk 0:01:07]}  h5 {[%clk 0:02:09]} 24. Nxe5 {[%clk 0:01:01]}  Qc8 {[%clk 0:01:11]} 25. Qxc6 {[%clk 0:00:53]}  Qb8 {[%clk 0:01:03]} 26. Rxd8+ {[%clk 0:00:45]}  Qxd8 {[%clk 0:01:03]} 27. Qxb5 {[%clk 0:00:45]}  Qd2 {[%clk 0:01:01]} 28. Qe2 {[%clk 0:00:45]}  Qd5 {[%clk 0:01:00]} 29. Bg2 {[%clk 0:00:42]}  Qd4 {[%clk 0:00:59]} 30. h3 {[%clk 0:00:41]}  h4 {[%clk 0:00:55]} 31. Kh2 {[%clk 0:00:38]}  g6 {[%clk 0:00:50]} 32. Bf3 {[%clk 0:00:38]}  hxg3+ {[%clk 0:00:49]} 33. fxg3 {[%clk 0:00:38]}  a4 {[%clk 0:00:47]} 34. Ng4 {[%clk 0:00:31]}  Nxg4+ {[%clk 0:00:40]} 35. Bxg4 {[%clk 0:00:32]}  a3 {[%clk 0:00:40]} 36. Bf3 {[%clk 0:00:29]}  Kg7 {[%clk 0:00:40]} 37. Kg2 {[%clk 0:00:29]}  Qc3 {[%clk 0:00:35]} 38. h4 {[%clk 0:00:26]}  Qd4 {[%clk 0:00:33]} 39. Qc2 {[%clk 0:00:25]}  Kg8 {[%clk 0:00:20]} 40. Be2 {[%clk 0:00:23]}  Qd5+ {[%clk 0:00:16]} 41. Kh2 {[%clk 0:00:21]}  Qd4 {[%clk 0:00:17]} 42. Bc4 {[%clk 0:00:21]}  Kg7 {[%clk 0:00:17]} 43. b4 {[%clk 0:00:20]}  f5 {[%clk 0:00:16]} 44. b5 {[%clk 0:00:20]}  f4 {[%clk 0:00:16]} 45. Qd3 {[%clk 0:00:14]}  Qb2+ {[%clk 0:00:14]} 46. Kh3 {[%clk 0:00:12]}  fxg3 {[%clk 0:00:14]} 47. Kxg3 {[%clk 0:00:12]}  Qe5+ {[%clk 0:00:14]} 48. Kh3 {[%clk 0:00:11]}  Qe1 {[%clk 0:00:14]} 49. Qd7+ {[%clk 0:00:11]}  Kh6 {[%clk 0:00:14]} 50. Qd3 {[%clk 0:00:10]}  Qh1+ {[%clk 0:00:13]} 51. Kg4 {[%clk 0:00:09]}  Qg2+ {[%clk 0:00:11]} 52. Kf4 {[%clk 0:00:09]}  Qb2 {[%clk 0:00:11]} 53. Ke4 {[%clk 0:00:08]}  Kh5 {[%clk 0:00:12]} 54. Qg3 {[%clk 0:00:08]}  Qb1+ {[%clk 0:00:09]} 55. Kd5 {[%clk 0:00:07]}  Qf5+ {[%clk 0:00:09]} 56. Qe5 {[%clk 0:00:07]}  Kxh4 {[%clk 0:00:08]} 57. Qxf5 {[%clk 0:00:07]}  gxf5 {[%clk 0:00:09]} 58. b6 {[%clk 0:00:07]}  f4 {[%clk 0:00:10]} 59. b7 {[%clk 0:00:08]}  f3 {[%clk 0:00:11]} 60. b8=Q {[%clk 0:00:08]}  f2 {[%clk 0:00:12]} 61. Qf4+ {[%clk 0:00:08]}  Kh5 {[%clk 0:00:11]} 62. Be2+ {[%clk 0:00:08]}  Kg6 {[%clk 0:00:12]} 63. Qxf2 {[%clk 0:00:09]}  Kg7 {[%clk 0:00:13]} 64. Qd4+ {[%clk 0:00:10]}  Kg8 {[%clk 0:00:14]} 65. Bf3 {[%clk 0:00:11]}  Kf8 {[%clk 0:00:15]} 66. Qe5 {[%clk 0:00:12]}  Kg8 {[%clk 0:00:15]} 67. Qc7 {[%clk 0:00:12]}  Kh8 {[%clk 0:00:15]} 68. Ke6 {[%clk 0:00:13]}  Kg8 {[%clk 0:00:16]} 69. Kf6 {[%clk 0:00:13]}  Kh8 {[%clk 0:00:16]} 70. Qg7# {[%clk 0:00:13]} 1-0


[Site "https://www.chess.com"]

[Event "Titled Tuesday Blitz August 16 Early 2022"]
[White "Barria Zuniga, Daniel"]
[Black "Qashashvili, Alexandre"]
[WhiteFideId "3400816"]
[BlackFideId "13600842"]
[WhiteElo "2414"]
[BlackElo "2316"]
[Result "0-1"]
[Round "03"]
[TimeControl "180+2"]
[Date "2022.08.18"]
[WhiteClock "0:00:00"]
[BlackClock "0:00:00"]

1. d4 {[%clk 0:00:00]}  c6 {[%clk 0:00:00]} 2. c4 {[%clk 0:00:00]}  d5 {[%clk 0:00:00]} 3. Nf3 {[%clk 0:00:00]}  Nf6 {[%clk 0:00:00]} 4. Nc3 {[%clk 0:00:00]}  Bf5 {[%clk 0:00:00]} 5. cxd5 {[%clk 0:00:00]}  Nxd5 {[%clk 0:00:00]} 6. Nd2 {[%clk 0:00:00]}  Nxc3 {[%clk 0:00:00]} 7. bxc3 {[%clk 0:00:00]}  e6 {[%clk 0:00:00]} 8. e4 {[%clk 0:00:00]}  Bg6 {[%clk 0:00:00]} 9. Bc4 {[%clk 0:00:00]}  Nd7 {[%clk 0:00:00]} 10. O-O {[%clk 0:00:00]}  Bd6 {[%clk 0:00:00]} 11. f4 {[%clk 0:00:00]}  Nb6 {[%clk 0:00:00]} 12. Bb3 {[%clk 0:00:00]}  Qd7 {[%clk 0:00:00]} 13. Qf3 {[%clk 0:00:00]}  f5 {[%clk 0:00:00]} 14. exf5 {[%clk 0:00:00]}  Bxf5 {[%clk 0:00:00]} 15. g4 {[%clk 0:00:00]}  Bg6 {[%clk 0:00:00]} 16. Ne4 {[%clk 0:00:00]}  O-O {[%clk 0:00:00]} 17. Ng5 {[%clk 0:00:00]}  Nd5 {[%clk 0:00:00]} 18. c4 {[%clk 0:00:00]}  Nxf4 {[%clk 0:00:00]} 19. c5 {[%clk 0:00:00]}  Be7 {[%clk 0:00:00]} 20. Bxf4 {[%clk 0:00:00]}  Bxg5 {[%clk 0:00:00]} 21. Qe3 {[%clk 0:00:00]}  Bxf4 {[%clk 0:00:00]} 22. Rxf4 {[%clk 0:00:00]}  Qe7 {[%clk 0:00:00]} 23. Qxe6+ {[%clk 0:00:00]}  Qxe6 {[%clk 0:00:00]} 24. Bxe6+ {[%clk 0:00:00]}  Bf7 {[%clk 0:00:00]} 25. Rxf7 {[%clk 0:00:00]}  Rxf7 {[%clk 0:00:00]} 26. Rf1 {[%clk 0:00:00]}  Rf8 {[%clk 0:00:00]} 27. Rf3 {[%clk 0:00:00]}  g6 {[%clk 0:00:00]} 28. Kf2 {[%clk 0:00:00]}  Kg7 {[%clk 0:00:00]} 29. Rxf7+ {[%clk 0:00:00]}  Rxf7+ {[%clk 0:00:00]} 30. Bxf7 {[%clk 0:00:00]}  Kxf7 {[%clk 0:00:00]} 31. Ke3 {[%clk 0:00:00]}  Ke6 {[%clk 0:00:00]} 32. Ke4 {[%clk 0:00:00]}  g5 {[%clk 0:00:00]} 33. h3 {[%clk 0:00:00]}  b5 {[%clk 0:00:00]} 34. cxb6 {[%clk 0:00:00]}  axb6 {[%clk 0:00:00]} 35. a4 {[%clk 0:00:00]}  h6 {[%clk 0:00:00]} 36. Ke3 {[%clk 0:00:00]}  Kd6 {[%clk 0:00:00]} 37. Ke4 {[%clk 0:00:00]}  Kc7 {[%clk 0:00:00]} 38. Ke5 {[%clk 0:00:00]}  Kd7 {[%clk 0:00:00]} 39. Ke4 {[%clk 0:00:00]}  Kc7 {[%clk 0:00:00]} 40. Ke5 {[%clk 0:00:00]}  b5 {[%clk 0:00:00]} 41. a5 {[%clk 0:00:00]}  b4 {[%clk 0:00:00]} 42. Ke4 {[%clk 0:00:00]}  Kb7 {[%clk 0:00:00]} 43. Kd3 {[%clk 0:00:00]}  Ka6 {[%clk 0:00:00]} 44. Kc4 {[%clk 0:00:00]}  Kxa5 {[%clk 0:00:00]} 45. Kc5 {[%clk 0:00:00]}  b3 {[%clk 0:00:00]} 46. Kxc6 {[%clk 0:00:00]}  b2 {[%clk 0:00:00]} 47. d5 {[%clk 0:00:00]}  b1=Q {[%clk 0:00:00]} 48. d6 {[%clk 0:00:00]} 0-1


[Site "https://www.chess.com"]

[Event "Titled Tuesday Blitz August 16 Early 2022"]
[White "Bolanos, Fernando"]
[Black "Karimov, Alisher"]
[WhiteFideId "3304094"]
[BlackFideId "14700280"]
[WhiteElo "2086"]
[BlackElo "2186"]
[Result "0-1"]
[Round "03"]
[TimeControl "180+2"]
[Date "2022.08.18"]
[WhiteClock "0:00:00"]
[BlackClock "0:00:00"]

1. e4 {[%clk 0:00:00]}  c5 {[%clk 0:00:00]} 2. Nf3 {[%clk 0:00:00]}  Nc6 {[%clk 0:00:00]} 3. d4 {[%clk 0:00:00]}  cxd4 {[%clk 0:00:00]} 4. Nxd4 {[%clk 0:00:00]}  Nf6 {[%clk 0:00:00]} 5. Nc3 {[%clk 0:00:00]}  d6 {[%clk 0:00:00]} 6. Be2 {[%clk 0:00:00]}  Bd7 {[%clk 0:00:00]} 7. O-O {[%clk 0:00:00]}  e6 {[%clk 0:00:00]} 8. Be3 {[%clk 0:00:00]}  Be7 {[%clk 0:00:00]} 9. Nb3 {[%clk 0:00:00]}  O-O {[%clk 0:00:00]} 10. Qd2 {[%clk 0:00:00]}  a6 {[%clk 0:00:00]} 11. a3 {[%clk 0:00:00]}  b5 {[%clk 0:00:00]} 12. Rad1 {[%clk 0:00:00]}  Qc7 {[%clk 0:00:00]} 13. f4 {[%clk 0:00:00]}  Rac8 {[%clk 0:00:00]} 14. Kh1 {[%clk 0:00:00]}  Rfe8 {[%clk 0:00:00]} 15. g4 {[%clk 0:00:00]}  Red8 {[%clk 0:00:00]} 16. Rg1 {[%clk 0:00:00]}  Be8 {[%clk 0:00:00]} 17. Bf3 {[%clk 0:00:00]}  d5 {[%clk 0:00:00]} 18. e5 {[%clk 0:00:00]}  Ne4 {[%clk 0:00:00]} 19. Qe1 {[%clk 0:00:00]}  Nxc3 {[%clk 0:00:00]} 20. Qxc3 {[%clk 0:00:00]}  b4 {[%clk 0:00:00]} 21. axb4 {[%clk 0:00:00]}  Bxb4 {[%clk 0:00:00]} 22. Qd3 {[%clk 0:00:00]}  d4 {[%clk 0:00:00]} 23. Nxd4 {[%clk 0:00:00]}  Nxd4 {[%clk 0:00:00]} 24. Bxd4 {[%clk 0:00:00]}  Qxc2 {[%clk 0:00:00]} 25. Qxc2 {[%clk 0:00:00]}  Rxc2 {[%clk 0:00:00]} 26. Bc3 {[%clk 0:00:00]}  Rb8 {[%clk 0:00:00]} 27. Rg2 {[%clk 0:00:00]}  Rxg2 {[%clk 0:00:00]} 28. Kxg2 {[%clk 0:00:00]}  Bxc3 {[%clk 0:00:00]} 29. bxc3 {[%clk 0:00:00]}  Kf8 {[%clk 0:00:00]} 30. c4 {[%clk 0:00:00]}  Rb2+ {[%clk 0:00:00]} 31. Kg3 {[%clk 0:00:00]}  Rc2 {[%clk 0:00:00]} 32. Ra1 {[%clk 0:00:00]}  Rxc4 {[%clk 0:00:00]} 33. Rxa6 {[%clk 0:00:00]}  Rc3 {[%clk 0:00:00]} 34. h4 {[%clk 0:00:00]}  g6 {[%clk 0:00:00]} 35. h5 {[%clk 0:00:00]}  Bb5 {[%clk 0:00:00]} 36. Ra2 {[%clk 0:00:00]}  Bc6 {[%clk 0:00:00]} 37. Rf2 {[%clk 0:00:00]}  gxh5 {[%clk 0:00:00]} 38. gxh5 {[%clk 0:00:00]}  Kg7 {[%clk 0:00:00]} 39. Kg2 {[%clk 0:00:00]}  Rxf3 {[%clk 0:00:00]} 40. Rxf3 {[%clk 0:00:00]}  Kh6 {[%clk 0:00:00]} 41. Kg3 {[%clk 0:00:00]}  Bxf3 {[%clk 0:00:00]} 42. Kxf3 {[%clk 0:00:00]}  Kxh5 {[%clk 0:00:00]} 43. Kg3 {[%clk 0:00:00]}  Kg6 {[%clk 0:00:00]} 44. Kg4 {[%clk 0:00:00]}  h5+ {[%clk 0:00:00]} 0-1


[Site "https://www.chess.com"]